bitfinex-derivatives/quotes_ETHF0:USTF0_20260131
["timestamp","ask_amount","ask_price","bid_price","bid_amount"]
[1769868948760,32.09604073,2602.2,2600.5,2.25302678]
[1769868948959,5.77327866,2601.9,2600.6,2.257]
[1769868949154,5.77328847,2601.8,2600.7,2.25302678]
[1769868949455,0.01006065,2602.0,2600.7,2.44557678]
[1769868949654,0.01006065,2602.0,2600.8,8.35802678]
[1769868949855,0.01006065,2602.0,2600.9,8.35802678]
[1769868950057,0.01006065,2602.0,2600.9,2.05302678]
[1769868950256,0.01006065,2602.0,2601.0,3.848]
[1769868950558,0.01006065,2602.0,2601.0,3.548]
[1769868950868,32.09604073,2602.8,2601.3,0.1925]
[1769868951053,32.09604073,2602.8,2601.4,3.848]
[1769868951054,40.23967329,2602.7,2601.4,3.848]
[1769868951253,5.77135977,2602.6,2601.4,3.848]
[1769868951455,32.09604073,2603.1,2601.6,0.19248]
[1769868951655,5.77130795,2603.0,2601.4,3.848]
[1769868951866,0.00271884,2603.0,2601.4,3.85159385]
[1769868952056,32.09604073,2604.3,2602.8,2.44541678]
[1769868952261,5.76906498,2604.2,2603.0,2.25302678]
[1769868952451,32.09604073,2604.5,2603.1,6.10102678]
[1769868952656,5.76875963,2604.4,2603.1,6.10102678]
[1769868952852,2.37227279,2604.6,2603.1,6.10102678]
[1769868953053,8.14000284,2604.5,2602.7,2.25302678]
[1769868953259,32.09604073,2604.2,2602.7,2.25302678]
[1769868953454,0.00390252,2604.6,2603.0,0.19238]
[1769868953665,0.00390252,2604.6,2603.4,2.25302678]
[1769868953968,2.37227279,2604.4,2603.4,3.85068832]
[1769868954266,5.76799058,2604.3,2603.4,0.00368832]
[1769868954455,5.76815959,2604.2,2602.4,2.25302678]
[1769868954655,2.37227279,2604.4,2589.0,6.864]
[1769868954656,5.76815959,2604.1,2602.7,2.44542678]
[1769868954979,2.37227279,2604.3,2602.9,2.25302678]
[1769868955166,8.1404628,2604.2,2602.7,0.1924]
[1769868955369,34.46831352,2604.0,2602.7,3.846]
[1769868955570,32.09604073,2604.4,2602.8,2.25302678]
[1769868955765,5.76852804,2604.3,2603.0,2.44540678]
[1769868955966,32.09994325,2604.6,2603.0,2.44540678]
[1769868956170,5.76788612,2604.5,2603.2,2.25302678]
[1769868956362,5.76773286,2604.4,2603.3,6.102]
[1769868956562,0.00390252,2604.6,2603.3,6.102]
[1769868956766,5.76776315,2604.5,2603.4,2.25302678]
[1769868956970,0.00390252,2604.6,2603.4,2.25302678]
[1769868957166,32.09604073,2604.2,2602.8,3.846]
[1769868957372,5.76749456,2604.1,2603.0,2.25302678]
[1769868957570,5.76749456,2604.0,2603.0,2.25302678]
[1769868957870,32.09604073,2604.3,2603.0,2.25302678]
[1769868958071,5.76804674,2604.2,2603.0,2.25302678]
[1769868958366,2.37227279,2603.8,2602.8,3.845]
[1769868958557,27.09608747,2603.9,2602.9,2.44540678]
[1769868958761,6.65174488,2604.5,2603.0,6.1]
[1769868958963,2.37227279,2604.5,2603.1,2.25302678]
[1769868959165,4.28337461,2604.6,2603.3,2.25302678]
[1769868959363,0.00390252,2604.6,2603.5,0.19234]
[1769868959564,0.00390252,2604.6,2603.5,2.44536678]
[1769868959970,0.00390252,2604.6,2603.8,2.25302678]
[1769868960170,4.27947209,2605.3,2603.8,2.25302678]
[1769868960473,0.0068544,2605.4,2603.8,2.25302678]
[1769868960765,0.0068544,2605.4,2604.2,2.25302678]
[1769868960972,4.27947209,2606.2,2605.0,2.25302678]
[1769868961167,4.27947209,2606.8,2605.2,2.25302678]
[1769868961471,4.27947209,2607.6,2605.9,2.25302678]
[1769868961674,4.27947209,2607.6,2605.5,2.25302678]
[1769868961675,4.27947209,2607.4,2605.5,2.25302678]
[1769868961865,2.37227279,2607.2,2605.5,2.25302678]
[1769868962068,4.58124336,2606.6,2605.0,2.25754681]
[1769868962267,2.37596733,2606.6,2605.1,2.25302678]
[1769868962462,0.00369454,2606.6,2605.1,2.25302678]
[1769868962673,0.00369454,2606.6,2605.5,2.25302678]
[1769868962868,2.20897057,2607.6,2606.0,2.25302678]
[1769868963176,8.30312643,2608.6,2606.2,2.25302678]
[1769868963177,2.37227279,2607.7,2606.2,2.25302678]
[1769868963376,2.37227279,2607.7,2606.3,6.098]
[1769868963567,2.37227279,2606.7,2605.0,0.00452003]
[1769868963771,2.37541724,2606.7,2605.0,2.25754681]
[1769868964070,2.37541724,2606.7,2605.2,2.25302678]
[1769868964071,0.00314445,2606.7,2605.2,2.25302678]
[1769868964275,0.00314445,2606.7,2605.4,2.25302678]
[1769868964568,2.37541724,2606.7,2604.9,3.60054681]
[1769868964769,2.37541724,2606.7,2604.9,2.254]
[1769868965167,2.37541724,2606.7,2604.6,3.843]
[1769868965374,2.37541724,2606.7,2604.6,6.097]
[1769868965570,2.37541724,2606.7,2604.6,6.10054423]
[1769868965877,2.37227279,2606.5,2604.6,0.00354423]
[1769868966576,2.37227279,2606.5,2604.7,8.35002678]
[1769868967072,2.37227279,2606.5,2604.7,2.25302678]
[1769868967276,3.86424619,2606.3,2604.6,0.00354423]
[1769868967466,3.86424619,2606.2,2604.6,0.00354423]
[1769868967666,3.86424619,2606.1,2604.6,0.00354423]
[1769868968278,3.86424619,2605.5,2603.2,3.85301005]
[1769868968480,3.86424619,2605.4,2603.4,3.85301005]
[1769868968671,3.86424619,2605.4,2603.6,3.85301005]
[1769868968871,2.19968209,2606.0,2604.2,3.85301005]
[1769868968872,3.86424619,2606.0,2604.2,3.85301005]
[1769868969072,3.86424619,2606.0,2604.4,3.85301005]
[1769868969379,3.86424619,2606.0,2604.2,0.00358903]
[1769868969678,3.86424619,2606.0,2604.4,4.04528005]
[1769868969875,3.86424619,2606.5,2604.7,3.85655428]
[1769868970077,2.19968209,2607.5,2605.2,3.85301005]
[1769868970276,2.19968209,2606.9,2605.0,3.85301005]
[1769868970575,2.19968209,2607.3,2605.1,0.19222]
[1769868970775,5.76327918,2607.2,2605.2,3.85301005]
[1769868970977,5.76327918,2607.1,2605.2,3.85301005]
[1769868971285,2.19968209,2606.6,2604.6,3.85301005]
[1769868971577,5.76327918,2606.5,2604.6,3.85301005]
[1769868971776,2.19968209,2606.0,2604.2,3.85659908]
[1769868971968,3.86424619,2606.2,2604.2,3.85659908]
[1769868972173,3.86424619,2605.8,2604.2,3.85659908]
[1769868972381,5.76503477,2605.7,2604.2,3.85659908]
[1769868972576,5.76503477,2605.6,2604.2,3.85659908]
[1769868972771,2.19968209,2605.9,2604.2,3.86014331]
[1769868973078,6.06392828,2605.7,2604.2,0.00358903]
[1769868973278,7.96550604,2605.6,2604.2,3.85659908]
[1769868973478,9.31834772,2606.2,2604.2,3.85659908]
[1769868973479,2.19968209,2606.0,2604.7,0.00354423]
[1769868973679,5.76562239,2605.9,2604.7,3.85301005]
[1769868973982,5.76562239,2605.8,2604.8,0.00354423]
[1769868974184,7.96475576,2605.7,2604.2,3.85659908]
[1769868974478,11.82900195,2605.6,2604.2,3.85659908]
[1769868974682,2.19968209,2604.8,2603.2,3.85301005]
[1769868974879,2.19968209,2604.8,2603.0,3.842]
[1769868974880,2.19968209,2605.5,2604.3,3.85301005]
[1769868975087,5.76615618,2605.4,2604.3,3.85301005]
[1769868975284,2.19968209,2605.7,2604.7,3.85301005]
[1769868975509,2.19968209,2606.0,2604.8,3.85301005]
[1769868975796,0.00289628,2606.0,2605.2,0.00354423]
[1769868975996,0.00289628,2606.0,2605.5,0.00354423]
[1769868976293,0.00289628,2606.0,2605.3,0.00354423]
[1769868976491,0.00289628,2606.0,2604.8,0.00353396]
[1769868976697,0.00289628,2606.0,2604.9,0.00354423]
[1769868977091,2.19968209,2605.9,2605.1,0.00354423]
[1769868977395,2.19968209,2605.9,2604.9,0.00354423]
[1769868977589,2.19968209,2605.9,2604.8,0.00353396]
[1769868977590,0.00289628,2606.0,2605.4,0.00354423]
[1769868977793,0.00289628,2606.0,2605.5,0.00354423]
[1769868977994,0.00289628,2606.0,2605.4,0.00354423]
[1769868978595,0.00289628,2606.0,2605.7,0.00354423]
[1769868978795,0.00289628,2606.0,2604.8,10.14278401]
[1769868979092,2.22179075,2606.5,2605.9,0.00354423]
[1769868979390,2.22778957,2606.6,2605.7,3.85655428]
[1769868979595,4.27947209,2607.0,2606.1,0.00354423]
[1769868979794,4.27947209,2607.0,2605.7,3.85301005]
[1769868979795,4.27947209,2607.2,2606.0,0.00354423]
[1769868979994,4.27947209,2607.2,2605.9,3.841]
[1769868979995,3.86424619,2607.1,2605.9,3.841]
[1769868980196,8.14371828,2607.1,2605.9,3.84454423]
[1769868980394,4.46362162,2607.5,2606.0,3.80585513]
[1769868980594,4.46362162,2607.5,2605.3,2.45013679]
[1769868980595,6.59978803,2608.2,2606.5,4.04513005]
[1769868980798,6.59978803,2608.3,2606.5,4.04513005]
[1769868981195,14.90291446,2608.5,2606.5,3.85301005]
[1769868981402,6.59978803,2608.2,2606.0,3.85301005]
[1769868981601,6.59978803,2608.0,2606.0,6.093]
[1769868981803,6.59978803,2607.9,2606.0,6.093]
[1769868981992,6.59978803,2607.9,2605.6,3.95301005]
[1769868982193,12.14412643,2608.2,2605.6,3.95301005]
[1769868982194,6.79181803,2607.8,2605.6,0.1]
[1769868982499,3.86424619,2607.2,2605.6,0.1]
[1769868982997,3.86424619,2607.1,2605.6,0.1]
[1769868983201,3.86424619,2606.9,2605.6,0.1]
[1769868984089,3.86424619,2606.9,2605.6,0.10354423]
[1769868984292,3.86424619,2606.9,2605.6,0.1]
[1769868984293,10.46403422,2606.9,2605.6,0.1]
[1769868984695,3.86424619,2606.6,2604.8,0.00353396]
[1769868984994,3.86424619,2606.2,2604.4,3.84]
[1769868985189,3.86424619,2605.8,2603.7,3.85301005]
[1769868985392,3.86424619,2605.7,2603.7,3.85301005]
[1769868985596,3.86424619,2605.4,2603.2,3.85301005]
[1769868985897,3.86424619,2605.4,2603.6,3.95301005]
[1769868985898,3.86424619,2605.3,2603.6,3.95301005]
[1769868986099,3.86823842,2605.3,2603.6,3.95727138]
[1769868986510,3.86424619,2605.1,2603.6,0.10426133]
[1769868986903,3.86424619,2605.1,2603.7,0.00354423]
[1769868987402,3.86424619,2605.1,2603.8,0.00354423]
[1769868987600,5.76701434,2605.0,2604.0,0.00354423]
[1769868987797,5.76701434,2604.9,2604.0,0.00354423]
[1769868988011,5.76701434,2604.8,2604.1,0.00354423]
[1769868988213,5.76701434,2604.7,2603.8,3.85655428]
[1769868988407,5.66701434,2604.6,2603.8,3.85301005]
[1769868988711,33.5655494,2605.1,2604.5,0.00354423]
[1769868988905,37.42979559,2605.1,2604.2,0.00354423]
[1769868989100,0.00399223,2605.3,2604.6,0.00354423]
[1769868989299,37.42979559,2605.0,2604.0,0.00354423]
[1769868989512,37.42979559,2605.0,2603.9,0.00354423]
[1769868989810,3.86424619,2605.0,2604.3,0.00354423]
[1769868990010,33.5655494,2605.1,2604.7,0.00354423]
[1769868990210,0.00399223,2605.3,2603.8,0.19232]
[1769868990504,0.00399223,2605.3,2604.3,0.00354423]
[1769868990695,0.00399223,2605.3,2604.4,0.00354423]
[1769868991101,0.00399223,2605.3,2604.8,0.00354423]
[1769868991302,5.59873882,2605.8,2605.0,0.00354423]
[1769868991303,33.5655494,2605.8,2605.0,0.00354423]
[1769868991514,37.42979559,2605.8,2605.1,0.00354423]
[1769868991706,3.86424619,2605.7,2604.8,0.00354423]
[1769868991911,3.86424619,2605.6,2604.0,1.99360394]
[1769868992104,37.42979559,2605.5,2604.3,0.00354423]
[1769868992409,37.42979559,2605.5,2604.1,6.094]
[1769868992410,3.86424619,2605.4,2604.1,6.094]
[1769868992609,3.86424619,2605.4,2604.5,0.00354423]
[1769868992810,3.86424619,2605.4,2604.1,0.00354423]
[1769868993004,3.86424619,2605.0,2603.7,4.03333]
[1769868993197,3.86424619,2605.0,2604.1,0.00354423]
[1769868993411,33.5655494,2605.2,2604.4,0.00354423]
[1769868993608,3.86424619,2605.2,2603.6,0.10426133]
[1769868993808,37.42979559,2604.8,2603.6,0.10426133]
[1769868994106,37.42979559,2605.2,2603.7,0.19233]
[1769868994311,3.86424619,2605.0,2603.7,0.19233]
[1769868994608,37.42979559,2604.9,2603.7,0.19233]
[1769868994809,3.86424619,2604.9,2603.8,0.19232]
[1769868995203,3.86424619,2604.9,2603.8,3.841]
[1769868995512,3.86424619,2604.8,2603.8,3.841]
[1769868996008,33.5655494,2605.0,2603.8,3.841]
[1769868996216,3.86424619,2604.9,2603.8,3.841]
[1769868996510,37.42979559,2604.9,2603.8,3.841]
[1769868996711,37.42979559,2604.6,2603.6,0.10426133]
[1769868996907,3.92864924,2604.5,2603.6,0.10426133]
[1769868997308,33.5655494,2604.6,2603.6,0.10426133]
[1769868997309,3.92864924,2604.3,2603.6,0.10426133]
[1769868997511,3.92864924,2604.3,2603.2,6.094]
[1769868998009,3.92864924,2604.2,2603.2,6.094]
[1769868998506,3.92864924,2604.2,2603.2,6.09888739]
[1769868999112,33.5655494,2604.5,2603.2,6.09888739]
[1769868999415,6.59978803,2605.1,2603.6,0.19233]
[1769868999416,3.92864924,2605.1,2603.6,0.19233]
[1769868999616,3.92864924,2605.1,2603.7,0.19233]
[1769868999811,3.92864924,2605.1,2603.7,6.28633]
[1769869000009,3.92864924,2605.1,2603.2,0.00488739]
[1769869000214,3.92864924,2604.9,2603.2,2.25788739]
[1769869000415,33.5655494,2604.8,2603.3,2.368895]
[1769869000616,5.55264139,2604.7,2603.3,2.368895]
[1769869000811,5.55264139,2604.6,2603.3,2.368895]
[1769869001016,3.8662285,2605.0,2603.5,2.368875]
[1769869001216,5.55579935,2604.9,2603.5,2.368875]
[1769869001417,5.55579935,2604.8,2603.5,2.368875]
[1769869001618,3.8662285,2605.0,2603.5,2.368875]
[1769869001817,9.42247415,2604.9,2603.5,2.176535]
[1769869002014,3.8662285,2605.4,2604.2,0.19229]
[1769869002715,3.8662285,2605.4,2604.3,6.095]
[1769869004309,0.00358969,2605.5,2604.4,2.13200607]
[1769869004714,3.8662285,2605.9,2604.4,2.13200607]
[1769869005016,4.4763861,2606.7,2605.0,0.19223]
[1769869005017,3.8662285,2606.4,2605.0,0.19223]
[1769869005626,3.86943205,2606.4,2605.1,2.253]
[1769869005920,3.86943205,2606.4,2605.1,2.25642973]
[1769869006914,3.86943205,2606.4,2605.1,0.00342973]
[1769869007122,3.86943205,2606.4,2605.2,6.094]
[1769869007318,3.86943205,2606.4,2605.1,0.00342973]
[1769869007617,3.86943205,2606.4,2605.2,2.253]
[1769869008920,3.8662285,2606.8,2605.3,2.12242032]
[1769869009221,33.5655494,2608.4,2606.4,0.19213]
[1769869009419,3.841,2609.2,2606.9,0.19208]
[1769869009420,33.5655494,2608.7,2606.9,0.19208]
[1769869009623,33.5655494,2608.9,2607.0,3.841]
[1769869009812,4.4763861,2609.1,2607.0,3.841]
[1769869010016,0.00376215,2609.1,2607.0,6.35994366]
[1769869010215,0.00376215,2609.1,2607.1,2.51590631]
[1769869010412,0.00376215,2609.1,2607.0,0.00303735]
[1769869010621,0.00376215,2609.1,2607.2,0.19207]
[1769869010822,0.00376215,2609.1,2607.3,6.094]
[1769869011017,3.8662285,2609.0,2607.3,6.094]
[1769869011325,3.8662285,2609.0,2607.3,6.28606]
[1769869011520,3.8662285,2609.0,2607.4,2.70795631]
[1769869011718,3.8662285,2609.0,2607.4,2.51590631]
[1769869012425,3.8662285,2609.0,2607.5,2.252]
[1769869012625,3.8662285,2609.0,2607.6,2.31289621]
[1769869013325,0.00376215,2609.1,2608.0,0.19201]
[1769869014018,3.86999065,2609.1,2608.0,0.19201]
[1769869014223,3.86999065,2609.1,2607.8,3.839]
[1769869014828,3.86999065,2609.1,2607.2,0.19207]
[1769869015022,3.86999065,2609.1,2607.3,2.252]
[1769869015424,3.86999065,2609.1,2607.0,0.00303735]
[1769869015620,3.8662285,2608.9,2607.1,2.251]
[1769869017837,3.8662285,2608.9,2607.1,4.48159988]
[1769869018132,3.8662285,2608.9,2607.1,4.52043696]
[1769869018335,3.8662285,2608.9,2607.6,0.19204]
[1769869018632,3.8662285,2608.9,2607.7,0.19203]
[1769869018932,0.00376215,2609.1,2607.5,2.26943696]
[1769869019128,3.86999065,2609.1,2607.9,0.19201]
[1769869019333,3.86999065,2609.1,2607.5,2.26943696]
[1769869019530,6.43372479,2610.9,2609.5,3.68576739]
[1769869019724,0.37638643,2612.9,2610.1,3.68576739]
[1769869019926,5.41977899,2612.8,2610.2,2.251]
[1769869020128,3.838,2612.7,2610.3,2.251]
[1769869020529,0.0037535,2612.7,2610.4,3.68576739]
[1769869020724,0.0037535,2612.7,2610.3,0.00462452]
[1769869021639,3.8662285,2612.6,2610.3,6.09262452]
[1769869021834,3.8662285,2612.6,2610.3,0.00462452]
[1769869022034,3.8662285,2612.2,2610.3,0.00462452]
[1769869022241,3.8662285,2611.5,2608.4,0.19198]
[1769869022538,4.0580385,2610.8,2608.0,3.837]
[1769869022723,3.8662285,2610.6,2607.9,9.77276739]
[1769869022922,6.087,2610.7,2607.9,9.77276739]
[1769869022923,3.8662285,2610.4,2607.9,6.087]
[1769869023125,3.8662285,2610.4,2607.9,9.77276739]
[1769869023338,3.86909948,2610.4,2608.0,3.68576739]
[1769869023531,3.86909948,2610.4,2608.6,3.68576739]
[1769869025039,0.00287098,2610.4,2608.6,3.68576739]
[1769869025335,3.86909948,2610.4,2608.3,3.87775739]
[1769869025532,3.86909948,2610.4,2608.4,0.19198]
[1769869025729,3.86909948,2610.4,2608.5,3.58576739]
[1769869025929,3.86909948,2610.4,2607.9,6.09117112]
[1769869025930,0.00287098,2610.4,2608.8,0.19195]
[1769869026125,0.00287098,2610.4,2608.9,2.44194]
[1769869026434,3.86909948,2610.4,2609.0,3.836]
[1769869027128,3.86909948,2610.4,2607.9,0.01100933]
[1769869027129,3.86909948,2610.4,2608.1,0.192]
[1769869027332,3.86909948,2610.4,2608.2,6.086]
[1769869027529,4.06092948,2610.4,2607.9,6.09700933]
[1769869027936,3.82098715,2610.2,2607.9,0.01100933]
[1769869028131,0.19186,2610.1,2607.9,0.01100933]
[1769869028339,3.82098715,2609.5,2606.7,0.19211]
[1769869028528,4.01288715,2609.5,2606.8,3.836]
[1769869029039,4.01288715,2609.5,2606.8,7.67504814]
[1769869029232,4.01288715,2609.5,2606.9,3.93113814]
[1769869029433,4.01290715,2609.3,2606.9,0.0045652]
[1769869030339,3.82098715,2609.1,2606.9,0.0045652]
[1769869031143,3.82098715,2608.9,2606.9,0.0045652]
[1769869031335,3.82098715,2608.9,2607.5,3.83904814]
[1769869031533,8.47822702,2610.5,2607.7,3.83904814]
[1769869031739,4.97278439,2610.3,2608.0,4.03105814]
[1769869032045,4.97278439,2610.2,2608.0,4.03105814]
[1769869032240,9.42318141,2610.1,2607.5,3.83904814]
[1769869032444,4.45039702,2609.8,2607.3,4.03110814]
[1769869032748,8.28639702,2609.7,2607.3,4.03110814]
[1769869032940,0.1919,2609.5,2607.3,4.03110814]
[1769869033246,4.98169812,2609.4,2607.3,4.03110814]
[1769869033540,3.82098715,2609.8,2607.8,0.19202]
[1769869033738,3.82098715,2609.6,2607.8,0.19202]
[1769869033940,3.82098715,2609.6,2607.8,4.03106814]
[1769869034146,3.82098715,2609.6,2607.8,3.83904814]
[1769869034438,49.27825702,2610.0,2607.2,6.08904814]
[1769869034439,3.82098715,2609.4,2607.2,6.08904814]
[1769869034638,3.82098715,2609.4,2607.4,3.83904814]
[1769869034847,3.82098715,2609.4,2607.4,3.73904814]
[1769869035445,3.82098715,2609.2,2607.4,3.73904814]
[1769869036044,44.636,2610.0,2607.1,0.19208]
[1769869036045,3.82098715,2609.0,2607.1,0.19208]
[1769869036247,3.82098715,2608.8,2607.1,0.19208]
[1769869036448,3.82098715,2608.6,2607.1,0.19208]
[1769869036946,3.82098715,2609.2,2607.2,4.03110814]
[1769869037139,3.82098715,2609.0,2607.2,4.03110814]
[1769869037346,9.43473882,2609.7,2607.2,4.03110814]
[1769869037347,3.82098715,2608.8,2607.2,4.03110814]
[1769869037541,3.82098715,2609.4,2607.8,3.83904814]
[1769869037739,3.82098715,2609.8,2608.0,3.83904814]
[1769869037942,3.82098715,2609.6,2608.2,3.83904814]
[1769869038139,3.82098715,2609.6,2608.1,6.086]
[1769869038339,5.01377684,2609.5,2608.2,3.83904814]
[1769869038539,3.82098715,2609.6,2608.2,3.83904814]
[1769869038849,3.82098715,2609.4,2608.1,6.086]
[1769869039047,3.82098715,2609.1,2606.9,0.0045652]
[1769869039247,3.82098715,2608.8,2606.9,3.84361334]
[1769869039447,3.82098715,2608.9,2606.9,3.84361334]
[1769869039651,7.26321122,2608.8,2606.9,3.84361334]
[1769869039855,4.45039702,2609.1,2606.9,3.84361334]
[1769869039856,3.82098715,2608.6,2606.9,3.84361334]
[1769869040750,3.82098715,2608.4,2606.9,3.84361334]
[1769869040941,3.82098715,2608.2,2606.9,3.84361334]
[1769869041147,3.82098715,2608.2,2606.9,0.0045652]
[1769869041451,3.82098715,2607.9,2606.1,3.83904814]
[1769869041653,3.82098715,2607.7,2606.1,3.83904814]
[1769869042554,3.82098715,2607.7,2606.1,3.84324723]
[1769869043149,3.82098715,2608.1,2606.3,4.03117814]
[1769869043347,3.82098715,2608.1,2606.5,3.83904814]
[1769869043547,0.00443994,2608.4,2606.7,3.83904814]
[1769869043748,0.00443994,2608.4,2606.1,0.00419909]
[1769869043749,3.82542709,2608.4,2606.8,2.25]
[1769869043953,3.82098715,2608.3,2606.9,3.83904814]
[1769869044453,3.82098715,2608.3,2606.5,3.83904814]
[1769869044751,3.82098715,2608.3,2606.1,0.00419909]
[1769869044752,3.82098715,2607.9,2606.1,3.84324723]
[1769869045057,8.74394987,2607.8,2606.1,3.84324723]
[1769869045253,3.82098715,2607.8,2606.1,3.84324723]
[1769869046148,3.82098715,2607.8,2606.3,3.83904814]
[1769869046854,3.82098715,2607.6,2606.1,0.00419909]
[1769869047358,3.82098715,2607.6,2606.1,3.84324723]
[1769869048060,3.82098715,2607.6,2606.1,3.94324723]
[1769869048846,3.82098715,2608.2,2606.1,4.13539723]
[1769869049056,3.82098715,2608.2,2606.6,0.19211]
[1769869049254,0.00443994,2608.4,2606.8,3.83904814]
[1769869049457,0.00443994,2608.4,2606.7,6.087]
[1769869049458,0.00443994,2608.4,2607.0,4.03112814]
[1769869049658,0.00443994,2608.4,2607.2,3.83904814]
[1769869050255,0.00443994,2608.4,2606.7,6.087]
[1769869050256,3.82098715,2609.0,2607.4,3.83904814]
[1769869050555,3.82098715,2609.0,2606.9,3.83904814]
[1769869050757,3.82098715,2608.6,2606.3,7.67604814]
[1769869050951,3.82098715,2608.4,2606.6,0.19211]
[1769869051256,3.82098715,2609.0,2607.1,3.83904814]
[1769869051457,0.00443203,2608.4,2607.1,3.83904814]
[1769869052360,0.00443203,2608.4,2607.3,3.83904814]
[1769869052557,0.00443203,2608.4,2607.5,3.83904814]
[1769869052960,0.00443203,2608.4,2607.1,3.83904814]
[1769869052961,3.82541918,2608.4,2607.1,3.83904814]
[1769869053856,3.82541918,2608.4,2606.7,4.0291]
[1769869053857,3.82098715,2608.2,2606.7,3.83904814]
[1769869054659,3.82098715,2608.2,2606.3,6.08904814]
[1769869054859,3.82098715,2608.2,2606.4,3.83904814]
[1769869055056,3.82098715,2608.0,2606.4,3.83904814]
[1769869055266,3.82098715,2607.8,2606.4,3.83904814]
[1769869055561,8.76989944,2607.7,2606.4,3.83904814]
[1769869055858,8.76989944,2607.7,2606.1,0.10419909]
[1769869055859,3.82098715,2607.5,2606.1,0.10419909]
[1769869056064,6.06557536,2607.1,2606.1,0.10419909]
[1769869056260,3.82098715,2606.9,2605.5,3.83904814]
[1769869056460,3.82098715,2606.8,2605.5,3.83904814]
[1769869056759,3.82098715,2606.8,2605.1,2.54222]
[1769869056760,3.82098715,2606.8,2605.1,0.1]
[1769869056964,3.82098715,2606.8,2605.1,4.02360569]
[1769869056965,6.09975375,2606.6,2605.1,4.02360569]
[1769869057157,3.85516554,2606.4,2605.1,0.1]
[1769869057359,3.85516554,2606.2,2605.1,0.10334724]
[1769869057661,4.95148398,2606.3,2604.1,0.1]
[1769869057662,3.85516554,2606.0,2604.1,0.1]
[1769869057863,3.85516554,2605.7,2604.1,0.1]
[1769869058066,3.85516554,2605.5,2604.1,0.1]
[1769869058263,4.94481005,2605.6,2604.1,0.1]
[1769869058264,3.85516554,2605.3,2604.1,0.1]
[1769869058468,3.85516554,2605.2,2603.5,3.92360569]
[1769869058660,3.85516554,2605.5,2603.5,3.92702132]
[1769869058860,3.85516554,2605.3,2603.5,3.92702132]
[1769869059061,33.64919811,2605.7,2603.5,3.92702132]
[1769869059062,3.85516554,2605.7,2603.5,3.92702132]
[1769869059367,3.85516554,2605.7,2603.5,4.11936132]
[1769869059665,3.85516554,2605.5,2603.5,3.92702132]
[1769869059863,3.85516554,2605.3,2603.5,3.92702132]
[1769869060063,3.85516554,2605.1,2603.5,0.00341563]
[1769869060659,3.65685762,2604.3,2601.8,3.74017555]
[1769869060963,3.65685762,2603.8,2601.6,3.94017555]
[1769869061678,3.66072414,2603.8,2601.6,3.94491125]
[1769869062381,0.00386652,2603.8,2602.0,3.74017555]
[1769869062578,3.65685762,2605.1,2603.0,3.74017555]
[1769869062774,3.65685762,2605.1,2603.2,3.74017555]
[1769869063275,3.65685762,2606.0,2603.8,3.74017555]
[1769869063674,0.00406891,2606.0,2604.3,3.74017555]
[1769869063874,0.00406891,2606.0,2604.5,3.74017555]
[1769869065075,3.65685762,2607.0,2604.7,3.74017555]
[1769869066179,3.66095806,2607.0,2604.7,3.74017555]
[1769869066380,3.66095806,2607.0,2604.6,0.19226]
[1769869066381,3.66095806,2607.0,2604.9,3.74017555]
[1769869066776,0.00683821,2606.2,2604.9,3.74017555]
[1769869067782,0.00410044,2607.0,2604.9,3.74017555]
[1769869068078,3.66095806,2607.0,2604.9,3.93241555]
[1769869068982,0.00410044,2607.0,2605.1,3.93239555]
[1769869069278,0.00410044,2607.0,2604.8,6.092]
[1769869069279,0.00410044,2607.0,2605.3,3.74017555]
[1769869070078,3.66095806,2607.0,2605.3,3.74017555]
[1769869070682,0.00410044,2607.0,2605.3,3.74017555]
[1769869071286,3.66095806,2607.0,2605.3,3.74017555]
[1769869071482,3.66095806,2607.0,2604.8,3.74017555]
[1769869071682,3.66095806,2607.0,2604.9,3.74017555]
[1769869071897,3.65685762,2606.9,2604.9,3.74017555]
[1769869072984,3.65685762,2606.9,2605.1,3.74017555]
[1769869073485,3.65685762,2606.6,2604.3,3.74017555]
[1769869073683,3.65685762,2606.4,2604.3,3.74017555]
[1769869073882,3.65685762,2606.2,2604.3,3.74017555]
[1769869074082,3.65685762,2606.9,2604.6,3.74017555]
[1769869074284,3.65685762,2606.7,2604.7,3.74017555]
[1769869075687,3.65685762,2606.5,2604.7,3.74017555]
[1769869075888,3.65685762,2606.3,2604.7,3.74017555]
[1769869076680,3.65685762,2606.8,2604.7,3.74017555]
[1769869076887,3.65685762,2606.8,2604.9,3.74017555]
[1769869078086,3.65685762,2606.8,2604.9,3.93241555]
[1769869078390,3.65685762,2606.8,2605.1,3.74017555]
[1769869081586,3.65685762,2606.8,2605.1,3.93239555]
[1769869082094,0.00410044,2607.0,2605.5,3.74017555]
[1769869082287,3.66095806,2607.0,2605.6,3.74017555]
[1769869082591,3.65685762,2606.5,2604.2,3.74017555]
[1769869082891,3.65685762,2605.9,2604.2,3.74017555]
[1769869083280,3.65685762,2606.5,2604.6,3.74017555]
[1769869083479,3.65685762,2606.3,2604.6,3.74017555]
[1769869083884,3.65685762,2606.7,2604.8,3.74017555]
[1769869084179,4.49126123,2607.0,2604.8,3.74017555]
[1769869084180,3.65685762,2606.6,2604.8,3.93242555]
[1769869084388,0.00410044,2607.0,2604.5,6.092]
[1769869084389,0.00410044,2607.0,2605.2,3.74017555]
[1769869084592,0.00410044,2607.0,2605.7,3.74017555]
[1769869084794,0.00410044,2607.0,2606.0,3.74017555]
[1769869085093,3.65685762,2607.8,2606.0,3.74017555]
[1769869085286,4.67916079,2608.2,2606.0,3.74017555]
[1769869085287,3.65685762,2607.7,2606.0,3.74017555]
[1769869085588,3.65685762,2607.3,2605.7,0.003789]
[1769869085788,3.65685762,2607.1,2605.7,0.003789]
[1769869085990,3.65685762,2606.9,2605.7,0.003789]
[1769869086294,3.65685762,2606.7,2605.0,3.84]
[1769869086488,3.65685762,2606.3,2604.4,3.74017555]
[1769869086689,3.84901762,2606.1,2604.0,7.58017555]
[1769869086885,3.56178903,2605.9,2604.1,3.65915938]
[1769869087392,3.56178903,2605.9,2604.1,3.66371704]
[1769869087995,37.48919811,2606.3,2604.5,3.65915938]
[1769869087996,3.56178903,2606.3,2604.5,3.65915938]
[1769869088197,3.56178903,2606.3,2604.6,3.65915938]
[1769869089293,3.56178903,2606.7,2604.6,3.65915938]
[1769869089496,3.56178903,2606.7,2604.8,3.65915938]
[1769869089692,3.56178903,2606.5,2604.8,3.65915938]
[1769869090392,3.56178903,2606.3,2604.8,3.65915938]
[1769869091200,3.56178903,2606.1,2604.4,3.65915938]
[1769869091490,3.56178903,2605.9,2604.4,3.65915938]
[1769869091694,3.56178903,2605.7,2604.1,0.00455766]
[1769869091992,3.56178903,2605.5,2604.1,0.00455766]
[1769869092299,3.56178903,2605.0,2603.8,0.00684763]
[1769869092495,8.54299073,2604.9,2603.8,0.00684763]